fUSD/lending_fUSD_20260203
["ID","MTS","AMOUNT","RATE_DAILY","PERIOD"]
[404403760,1770109838073,-500.0,8.838e-05,2]
[404403761,1770109838082,-167.57708086,8.838e-05,2]
[404403762,1770109838092,-500.0,8.838e-05,2]
[404403763,1770109838102,-500.0,8.838e-05,2]
[404403764,1770109838111,-327.00061325,8.838e-05,2]
[404403765,1770109838120,-500.0,8.838e-05,2]
[404403766,1770109838130,-500.0,8.838e-05,2]
[404403767,1770109838140,-500.0,8.838e-05,2]
[404403768,1770109838149,-500.0,8.838e-05,2]
[404403769,1770109838159,-500.0,8.838e-05,2]
[404403770,1770109838168,-500.0,8.838e-05,2]
[404403771,1770109838178,-500.0,8.838e-05,2]
[404403772,1770109838188,-500.0,8.838e-05,2]
[404403773,1770109838197,-500.0,8.838e-05,2]
[404403774,1770109838209,-500.0,8.838e-05,2]
[404403775,1770109838219,-500.0,8.838e-05,2]
[404403776,1770109838228,-500.0,8.838e-05,2]
[404403777,1770109838238,-203.73960772,8.838e-05,2]
[404403778,1770109838247,-500.0,8.838e-05,2]
[404403779,1770109838256,-758.51,8.838e-05,2]
[404403780,1770109838266,-3397205.7068581,8.839e-05,2]
[404403781,1770109838277,-1110.68474208,8.839e-05,2]
[404403782,1770109838289,-18889.33525792,8.839e-05,2]
[404403785,1770109841187,-1.7e-07,8.839e-05,2]
[404403786,1770109841245,-833.48478847,8.839e-05,2]
[404403787,1770109841255,-400.12576642,8.839e-05,2]
[404403788,1770109841265,-1041.13775046,8.876e-05,2]
[404403789,1770109841275,-4876.88406978,8.9e-05,3]
[404403790,1770109841285,-13000.0,8.9e-05,3]
[404403791,1770109841295,-9418.33,8.939e-05,2]
[404403792,1770109841305,-12882.18,8.939e-05,2]
[404403793,1770109841320,-1386.37,8.939e-05,2]
[404403794,1770109841329,-3662.86,8.974e-05,2]
[404403795,1770109841338,-3662.86,8.997e-05,2]
[404403796,1770109841348,-13700.0,9e-05,3]
[404403797,1770109841358,-16200.0,9e-05,3]
[404403798,1770109841367,-3662.86,9.021e-05,2]
[404403799,1770109841377,-3662.86,9.044e-05,2]
[404403800,1770109841387,-3662.86,9.068e-05,2]
[404403801,1770109841396,-3662.86,9.092e-05,2]
[404403802,1770109841406,-3662.86,9.115e-05,2]
[404403803,1770109841416,-500.0,9.123e-05,2]
[404403804,1770109841426,-250.0,9.123e-05,2]
[404403805,1770109841436,-420.0,9.129e-05,2]
[404403806,1770109841446,-420.0,9.129e-05,2]
[404403807,1770109841456,-300.0,9.129e-05,2]
[404403808,1770109841466,-1680.0,9.129e-05,2]
[404403809,1770109841476,-250.0,9.13e-05,2]
[404403810,1770109841486,-300.0,9.13e-05,2]
[404403811,1770109841496,-160.3,9.133e-05,2]
[404403812,1770109841506,-166.51015303,9.133e-05,2]
[404403813,1770109841516,-500.0,9.133e-05,2]
[404403814,1770109841525,-500.0,9.133e-05,2]
[404403815,1770109841535,-562.28195765,9.133e-05,2]
[404403816,1770109841545,-500.55069623,9.133e-05,2]
[404403817,1770109841555,-500.0,9.133e-05,2]
[404403818,1770109841565,-500.0,9.133e-05,2]
[404403819,1770109841575,-500.0,9.133e-05,2]
[404403820,1770109841585,-500.0,9.133e-05,2]
[404403821,1770109841595,-500.0,9.133e-05,2]
[404403822,1770109841604,-500.0,9.133e-05,2]
[404403823,1770109841614,-3662.86,9.139e-05,2]
[404403824,1770109841624,-3662.86,9.163e-05,2]
[404403825,1770109841638,-3662.86,9.186e-05,2]
[404403826,1770109841647,-3662.86,9.21e-05,2]
[404403827,1770109841657,-3662.86,9.233e-05,2]
[404403828,1770109841667,-30146.4538394,9.244e-05,2]
[404403829,1770109841677,-3662.86,9.257e-05,2]
[404403830,1770109841687,-3662.86,9.281e-05,2]
[404403831,1770109841701,-3662.86,9.304e-05,2]
[404403832,1770109841711,-3662.86,9.328e-05,2]
[404403833,1770109841721,-3662.86,9.352e-05,2]
[404403834,1770109841730,-3662.86,9.375e-05,2]
[404403835,1770109841741,-3662.86,9.399e-05,2]
[404403836,1770109841751,-3662.86,9.422e-05,2]
[404403837,1770109841761,-787024.2608373,9.43e-05,2]
[404403838,1770109841771,-1000000.0,9.581e-05,2]
[404403839,1770109841780,-255.0,9.611e-05,2]
[404403840,1770109841791,-150.99,9.681e-05,2]
[404403841,1770109841801,-9999.99,9.681e-05,2]
[404403842,1770109841811,-12267.9,9.681e-05,2]
[404403843,1770109841821,-500.0,9.681e-05,2]
[404403844,1770109841831,-500.0,9.681e-05,2]
[404403845,1770109841841,-500.0,9.681e-05,2]
[404403846,1770109841851,-237.3167,9.9e-05,2]
[404403847,1770109841861,-6726.6528,9.9e-05,2]
[404403848,1770109841871,-89306.5331,9.9e-05,2]
[404403849,1770109841880,-151.0,0.0001,2]
[404403850,1770109841890,-151.0,0.0001,2]
[404403851,1770109841900,-151.0,0.0001,2]
[404403852,1770109841910,-151.0,0.0001,2]
[404403853,1770109841919,-151.0,0.0001,2]
[404403854,1770109841929,-151.0,0.0001,2]
[404403855,1770109841939,-151.0,0.0001,2]
[404403856,1770109841949,-151.0,0.0001,2]
[404403857,1770109841959,-151.0,0.0001,2]
[404403858,1770109841969,-151.0,0.0001,2]
[404403859,1770109841979,-151.0,0.0001,2]
[404403860,1770109841988,-151.0,0.0001,2]
[404403861,1770109841998,-151.0,0.0001,2]
[404403862,1770109842007,-151.0,0.0001,2]
[404403863,1770109842017,-151.0,0.0001,2]
[404403864,1770109842027,-151.0,0.0001,2]
[404403865,1770109842036,-151.0,0.0001,2]
[404403866,1770109842046,-151.0,0.0001,2]
[404403867,1770109842056,-151.0,0.0001,2]
[404403868,1770109842066,-151.0,0.0001,2]
[404403869,1770109842079,-500.0,0.0001,2]
[404403870,1770109842088,-151.0,0.0001,2]
[404403871,1770109842098,-500.0,0.0001,2]
[404403872,1770109842108,-151.0,0.0001,2]
[404403873,1770109842119,-151.0,0.0001,2]
[404403874,1770109842130,-500.0,0.0001,2]
[404403875,1770109842140,-151.0,0.0001,2]
[404403876,1770109842150,-500.0,0.0001,2]
[404403877,1770109842160,-151.0,0.0001,2]
[404403878,1770109842170,-500.0,0.0001,2]
[404403879,1770109842180,-151.0,0.0001,2]
[404403880,1770109842190,-500.0,0.0001,2]
[404403881,1770109842200,-151.0,0.0001,2]
[404403882,1770109842210,-500.0,0.0001,2]
[404403883,1770109842220,-151.0,0.0001,2]
[404403884,1770109842229,-500.0,0.0001,2]
[404403885,1770109842239,-500.0,0.0001,2]
[404403886,1770109842249,-151.0,0.0001,2]
[404403887,1770109842259,-151.0,0.0001,2]
[404403888,1770109842269,-500.0,0.0001,2]
[404403889,1770109842279,-151.0,0.0001,2]
[404403890,1770109842289,-500.0,0.0001,2]
[404403891,1770109842298,-500.0,0.0001,2]
[404403892,1770109842308,-500.0,0.0001,2]
[404403893,1770109842318,-500.0,0.0001,2]
[404403894,1770109842327,-500.0,0.0001,2]
[404403895,1770109842337,-500.0,0.0001,2]
[404403896,1770109842347,-500.0,0.0001,2]
[404403897,1770109842357,-500.0,0.0001,2]
[404403898,1770109842367,-500.0,0.0001,2]
[404403899,1770109842376,-500.0,0.0001,2]
[404403900,1770109842386,-500.0,0.0001,2]
[404403901,1770109842396,-500.0,0.0001,2]
[404403902,1770109842406,-170.34718645,0.0001,2]
[404403903,1770109842416,-151.0,0.0001,2]
[404403904,1770109842426,-999.99,0.0001,2]
[404403905,1770109842436,-5313.97,0.0001,2]
[404403906,1770109842446,-3298.8,0.0001,2]
[404403907,1770109842456,-9999.99,0.0001,2]
[404403908,1770109842466,-343.78,0.0001,2]
[404403909,1770109842476,-2700.0,0.0001,3]
[404403910,1770109842486,-3200.0,0.0001,3]
[404403911,1770109842496,-183.18333193,0.0001,2]
[404403912,1770109842506,-150.01394406,0.0001,2]
[404403913,1770109842515,-169.96770097,0.0001,2]
[404403914,1770109842525,-150.99,0.00010022,2]
[404403915,1770109842535,-9999.99,0.00010022,2]
[404403916,1770109842545,-299.99,0.00010022,2]
[404403917,1770109842554,-4999.99,0.00010022,2]
[404403918,1770109842564,-180.0,0.00010042,2]
[404403919,1770109842574,-587.0,0.00010042,2]
[404403920,1770109842583,-2351.0,0.00010042,2]
[404403921,1770109842593,-7798.7438,0.00010064,2]
[404403922,1770109842602,-62290.1889643,0.00010164,2]
[404403923,1770109842612,-30146.4538394,0.00010188,2]
[404403924,1770109842621,-33292.3487,0.00010474,2]
[404403925,1770109842632,-1000.0,0.00010474,2]
[404403926,1770109842642,-3486.16,0.00010558,2]
[404403927,1770109842651,-433.0,0.00010573,2]
[404403928,1770109842661,-787024.2608373,0.0001058,2]
[404403929,1770109842670,-500.98,0.00010797,2]
[404403930,1770109842681,-2617.0576,0.000108,2]
[404403931,1770109842691,-2500.0,0.000108,2]
[404403932,1770109842700,-500.0,0.00010877,2]
[404403933,1770109842712,-150.0,0.00010959,2]
[404403934,1770109842722,-250.0,0.00010966,2]
[404403935,1770109842732,-3292.0,0.00011046,2]
[404403936,1770109842741,-823.0,0.00011046,2]
[404403937,1770109842751,-5584.43737921,0.00011099,2]
[404403938,1770109842760,-5584.43737918,0.00011099,2]
[404403939,1770109842770,-5584.43737918,0.00011099,2]
[404403940,1770109842780,-5584.43737918,0.00011099,2]
[404403941,1770109842789,-5584.43737918,0.00011099,2]
[404403942,1770109842799,-5584.43737918,0.00011099,2]
[404403943,1770109842808,-5584.43737918,0.00011099,2]
[404403944,1770109842818,-5584.43737918,0.00011099,2]
[404403945,1770109842827,-5584.43737918,0.00011099,2]
[404403946,1770109842837,-5584.43737918,0.00011099,2]
[404403947,1770109842846,-30146.4538394,0.00011132,2]
[404403948,1770109842857,-183.18333192,0.00011135,2]
[404403949,1770109842866,-150.01394406,0.00011171,2]
[404403950,1770109842877,-500.0,0.00011479,2]
[404403951,1770109842886,-500.0,0.00011589,2]
[404403952,1770109842896,-736.0,0.0001163,2]
[404403953,1770109842906,-512781.69669479,0.00011729,2]
[404403954,1770109842919,-3257.28986598,0.00011729,2]
[404403955,1770109842938,-284.40031566,0.00011729,2]
[404403962,1770109843731,10000.01,8.181e-05,2]
[404403963,1770109843762,10000.01,8.181e-05,2]
[404403964,1770109843792,10000.01,8.181e-05,2]
[404403965,1770109843823,10000.01,8.181e-05,2]
[404403966,1770109843853,10000.01,8.181e-05,2]
[404403967,1770109843882,10000.01,8.181e-05,2]
[404403968,1770109843911,10000.01,8.181e-05,2]
[404403969,1770109843940,10000.01,8.181e-05,2]
[404403970,1770109843969,10000.01,8.181e-05,2]
[404403971,1770109843999,10000.01,8.181e-05,2]
[404403972,1770109844030,10000.01,8.181e-05,2]
[404403973,1770109844060,10000.01,8.181e-05,2]
[404403974,1770109844090,10000.01,8.181e-05,2]
[404403975,1770109844121,10000.01,8.181e-05,2]
[404403976,1770109844152,10000.01,8.181e-05,2]
[404403979,1770109845695,-5471.90813174,8.181e-05,2]
[404403982,1770109855084,-5000.01,8.181e-05,2]
[404403983,1770109855283,-5000.01,8.181e-05,2]
[404403984,1770109855556,-5000.01,8.181e-05,2]
[404403985,1770109856319,-8495.42153896,8.181e-05,2]
[404403986,1770109856462,-10000.01,8.181e-05,2]
[404403987,1770109856580,-10000.01,8.181e-05,2]
[404403988,1770109856691,-10000.01,8.181e-05,2]
[404403989,1770109856788,-10000.01,8.181e-05,2]
[404403990,1770109856946,-10000.01,8.181e-05,2]
[404403991,1770109857168,-10000.01,8.181e-05,2]
[404403992,1770109857312,-10000.01,8.181e-05,2]
[404403993,1770109857423,-10000.01,8.181e-05,2]
[404403994,1770109857524,-10000.01,8.181e-05,2]
[404403995,1770109857626,-10000.01,8.181e-05,2]
[404403996,1770109857895,-10000.01,8.181e-05,2]
[404403997,1770109861005,-5000.01,8.181e-05,2]
[404403998,1770109861104,-5000.01,8.181e-05,2]
[404403999,1770109861204,-5000.01,8.181e-05,2]
[404404000,1770109866181,2000.0,7.7e-05,2]
[404404001,1770109866861,-300.0,8.18e-05,2]
[404404002,1770109868320,4000.0,7.8e-05,2]
[404404003,1770109870414,5400.01,7.9e-05,2]
[404404004,1770109870439,699.99,7.9e-05,2]
[404404005,1770109872523,8100.0,8e-05,2]
[404404006,1770109879159,172.0,6.3e-07,2]
[404404007,1770109879828,-1628.02,8.181e-05,2]
[404404008,1770109879921,-10000.01,8.181e-05,2]
[404404009,1770109883259,-10000.01,8.181e-05,2]
[404404010,1770109885423,-10000.01,8.181e-05,2]
[404404011,1770109885447,-10000.01,8.181e-05,2]
[404404012,1770109885578,-10000.01,8.181e-05,2]
[404404013,1770109885696,-10000.01,8.181e-05,2]
[404404014,1770109885833,-10000.01,8.181e-05,2]
[404404015,1770109888498,-10000.01,8.181e-05,2]
[404404016,1770109891908,-10000.01,8.181e-05,2]
[404404017,1770109897583,-3418.82,8.017e-05,2]
[404404018,1770109897612,-304.493,8.017e-05,2]
[404404019,1770109897663,-2553.384,8.181e-05,2]
[404404020,1770109897800,-10000.01,8.181e-05,2]
[404404021,1770109897909,-10000.01,8.181e-05,2]
[404404022,1770109898015,-10000.01,8.181e-05,2]
[404404023,1770109898135,-10000.01,8.181e-05,2]
[404404024,1770109906303,3400.0,7.7e-05,2]
[404404025,1770109908411,1600.01,7.8e-05,2]
[404404026,1770109908436,5000.01,7.8e-05,2]
[404404027,1770109908459,199.98,7.8e-05,2]
[404404028,1770109910506,5000.01,7.9e-05,2]
[404404029,1770109910541,5000.01,7.9e-05,2]
[404404030,1770109910566,299.98,7.9e-05,2]
[404404031,1770109921685,-10000.01,8e-05,2]
[404404032,1770109921815,-300.0,7.999e-05,2]
[404404033,1770109921843,-3699.99,8e-05,2]
[404404034,1770109921895,-2000.03,8.181e-05,2]
[404404035,1770109921937,-150.0,8.18e-05,2]
[404404036,1770109921948,-9850.01,8.181e-05,2]
[404404037,1770109922197,-300.0,7.999e-05,2]
[404404038,1770109922206,-9700.01,8.181e-05,2]
[404404039,1770109922324,-10000.01,8.181e-05,2]
[404404040,1770109922440,-10000.01,8.181e-05,2]
[404404041,1770109922551,-10000.01,8.181e-05,2]
[404404042,1770109922652,-10000.01,8.181e-05,2]
[404404043,1770109922778,-10000.01,8.181e-05,2]
[404404044,1770109924923,-10000.01,8.181e-05,2]
[404404045,1770109933531,200.0,7.7e-05,2]
[404404046,1770109935624,500.0,7.8e-05,2]
[404404047,1770109937013,-10000.01,7.945e-05,2]
[404404048,1770109937237,-1984.29664,7.945e-05,2]
[404404049,1770109937266,-151.0,8.178e-05,2]
[404404050,1770109937312,-5729.41672,8.181e-05,2]
[404404051,1770109937374,-10000.01,8.181e-05,2]
[404404052,1770109937506,-10000.01,8.181e-05,2]
[404404053,1770109937659,-10000.01,8.181e-05,2]
[404404054,1770109937755,700.0,7.9e-05,2]
[404404055,1770109938061,-10000.01,8.181e-05,2]
[404404056,1770109938210,-10000.01,8.181e-05,2]
[404404057,1770109947751,-1000.0,8e-05,2]
[404404058,1770109947796,-8000.01,8.181e-05,2]
[404404059,1770109947860,-10000.01,8.181e-05,2]
[404404060,1770109949297,-10000.01,8.181e-05,2]
[404404061,1770109952543,-10000.01,8.181e-05,2]
[404404062,1770109958682,-10000.01,8.181e-05,2]
[404404063,1770109958944,-10000.01,8.181e-05,2]
[404404064,1770109959086,-10000.01,8.181e-05,2]
[404404065,1770109959234,-10000.01,8.181e-05,2]
[404404066,1770109959388,-10000.01,8.181e-05,2]
[404404067,1770109959536,-10000.01,8.181e-05,2]
[404404068,1770109959704,-10000.01,8.181e-05,2]
[404404069,1770109968340,-10000.01,8.181e-05,2]
[404404070,1770109968354,-10000.01,8.181e-05,2]
[404404071,1770109968381,-10000.01,8.181e-05,2]
[404404072,1770109968402,-10000.01,8.181e-05,2]
[404404073,1770109968420,-10000.01,8.181e-05,2]
[404404074,1770109968445,-10000.01,8.181e-05,2]
[404404075,1770109968561,-10000.01,8.181e-05,2]
[404404076,1770109968687,-10000.01,8.181e-05,2]
[404404077,1770109976340,-1100.05,8.181e-05,2]
[404404078,1770109976395,-5000.01,8.181e-05,2]
[404404079,1770109976510,-5000.01,8.181e-05,2]
[404404080,1770109976633,-5000.01,8.181e-05,2]
[404404081,1770109976788,-5000.01,8.181e-05,2]
[404404082,1770109978688,-5000.01,8.181e-05,2]
[404404083,1770109978812,-5000.01,8.181e-05,2]
[404404084,1770109978907,-5000.01,8.181e-05,2]
[404404085,1770109979063,-5000.01,8.181e-05,2]
[404404086,1770109979175,-5000.01,8.181e-05,2]
[404404087,1770109979960,-10000.01,8.181e-05,2]
[404404088,1770109981669,-5000.01,8.181e-05,2]
[404404089,1770109981831,-300.0,8.18e-05,2]
[404404090,1770109981865,-4400.01,8.181e-05,2]
[404404091,1770109981994,-5000.01,8.181e-05,2]
[404404092,1770109982108,-5000.01,8.181e-05,2]
[404404093,1770109984811,-5000.01,8.181e-05,2]
[404404094,1770109985026,-5000.01,8.181e-05,2]
[404404095,1770109986068,-10000.01,8.181e-05,2]
[404404096,1770109986192,-10000.01,8.181e-05,2]
[404404097,1770109986349,-10000.01,8.181e-05,2]
[404404098,1770109986462,-10000.01,8.181e-05,2]
[404404099,1770109986566,-10000.01,8.181e-05,2]
[404404100,1770109986757,-10000.01,8.181e-05,2]
[404404101,1770109986873,-10000.01,8.181e-05,2]
[404404102,1770109987001,-10000.01,8.181e-05,2]
[404404103,1770109987123,-10000.01,8.181e-05,2]
[404404104,1770109987679,-5000.01,8.181e-05,2]
[404404105,1770109987794,-5000.01,8.181e-05,2]
[404404106,1770109987896,-5000.01,8.181e-05,2]
[404404107,1770109990727,-196.845878,7.945e-05,2]
[404404108,1770109990757,-1034.01803222,8.18e-05,2]
[404404109,1770109990812,-2538.28217956,8.181e-05,2]
[404404110,1770109990867,-5000.01,8.181e-05,2]
[404404111,1770110005517,-10000.01,8.181e-05,2]
[404404112,1770110005765,-10000.01,8.181e-05,2]
[404404113,1770110005866,-10000.01,8.181e-05,2]
[404404114,1770110005956,-10000.01,8.181e-05,2]
[404404115,1770110006100,-10000.01,8.181e-05,2]
[404404116,1770110008325,-1200.0,8.18e-05,2]
[404404117,1770110008358,-7600.01,8.181e-05,2]
[404404118,1770110009932,-10000.01,8.181e-05,2]
[404404119,1770110010076,-10000.01,8.181e-05,2]
[404404120,1770110010188,-10000.01,8.181e-05,2]
[404404121,1770110023616,-965.73893457,8.181e-05,2]
[404404122,1770110023665,-8068.53213086,8.181e-05,2]
[404404123,1770110023727,-10000.01,8.181e-05,2]
[404404124,1770110023846,-10000.01,8.181e-05,2]
[404404125,1770110024016,-10000.01,8.181e-05,2]
[404404126,1770110024089,-10000.01,8.181e-05,2]
[404404127,1770110024205,-10000.01,8.181e-05,2]
[404404128,1770110024758,-10000.01,8.181e-05,2]
[404404129,1770110024776,-10000.01,8.181e-05,2]
[404404130,1770110024795,-10000.01,8.181e-05,2]
[404404131,1770110039954,-10000.01,8.081e-05,2]
[404404132,1770110041835,-10000.01,8.081e-05,2]
[404404133,1770110041966,-10000.01,8.081e-05,2]
[404404134,1770110042095,-10000.01,8.081e-05,2]
[404404135,1770110042211,-10000.01,8.081e-05,2]
[404404136,1770110042321,-10000.01,8.081e-05,2]
[404404137,1770110042476,-10000.01,8.081e-05,2]
[404404138,1770110042841,-10000.01,8.081e-05,2]
[404404139,1770110043115,-693.5569,8.081e-05,2]
[404404140,1770110043139,-8612.8962,8.081e-05,2]
[404404141,1770110045747,300.0,7.7e-05,2]
[404404142,1770110047905,700.0,7.8e-05,2]
[404404143,1770110048160,-10000.01,8.181e-05,2]
[404404144,1770110054327,-1100.0,7.9e-05,2]
[404404145,1770110057760,247.7,6.88e-05,2]
[404404146,1770110057947,247.7,7.568e-05,2]
[404404147,1770110059062,-1500.0,8e-05,2]
[404404148,1770110059089,-1606.709721,8.178e-05,2]
[404404149,1770110059116,-151.0,8.178e-05,2]
[404404150,1770110059142,-965.98196778,8.18e-05,2]
[404404151,1770110059239,-1552.62662244,8.181e-05,2]
[404404152,1770110063631,-10000.01,8.181e-05,2]
[404404153,1770110069772,-10000.01,8.181e-05,2]
[404404154,1770110069896,-10000.01,8.181e-05,2]
[404404155,1770110151944,-10000.01,8.081e-05,2]
[404404156,1770110152297,-10000.01,8.081e-05,2]
[404404157,1770110152524,-10000.01,8.081e-05,2]
[404404158,1770110152703,-10000.01,8.081e-05,2]
[404404159,1770110152826,-10000.01,8.081e-05,2]
[404404160,1770110152944,-10000.01,8.081e-05,2]
[404404161,1770110153056,-10000.01,8.081e-05,2]
[404404162,1770110153165,-10000.01,8.081e-05,2]
[404404163,1770110153274,-10000.01,8.081e-05,2]
[404404164,1770110153754,10000.01,7.954e-05,2]
[404404165,1770110153777,9170.3,7.954e-05,2]
[404404166,1770110172108,-829.71,8.071e-05,2]
[404404167,1770110172215,-10000.01,8.071e-05,2]
[404404168,1770110172366,-10000.01,8.071e-05,2]
[404404169,1770110172512,-10000.01,8.071e-05,2]
[404404170,1770110172623,-10000.01,8.071e-05,2]
[404404171,1770110172729,-10000.01,8.071e-05,2]
[404404172,1770110172847,-10000.01,8.071e-05,2]
[404404173,1770110175068,-10000.01,8.071e-05,2]
[404404174,1770110175215,-3616.15472658,8.071e-05,2]
[404404175,1770110175249,-151.0,8.078e-05,2]
[404404176,1770110175281,-300.0,8.08e-05,2]
[404404177,1770110175918,-1865.70054684,8.081e-05,2]
[404404178,1770110176092,-10000.01,8.081e-05,2]
[404404179,1770110178096,-10000.01,8.081e-05,2]
[404404180,1770110178205,-10000.01,8.081e-05,2]
[404404181,1770110178379,-10000.01,8.081e-05,2]
[404404182,1770110178528,-10000.01,8.081e-05,2]
[404404183,1770110178678,-10000.01,8.081e-05,2]
[404404184,1770110178784,-10000.01,8.081e-05,2]
[404404185,1770110184195,-3504.61,8.081e-05,2]
[404404186,1770110187064,-5000.01,8.081e-05,2]
[404404187,1770110188940,-10000.01,8.081e-05,2]
[404404188,1770110189116,-10000.01,8.081e-05,2]
[404404189,1770110189290,-10000.01,8.081e-05,2]
[404404190,1770110193747,-10000.01,8.081e-05,2]
[404404191,1770110193858,-10000.01,8.081e-05,2]
[404404192,1770110193979,-10000.01,8.081e-05,2]
[404404193,1770110238448,-5000.01,7.954e-05,2]
[404404194,1770110247429,-5000.01,7.954e-05,2]
[404404195,1770110250718,-4843.33,7.954e-05,2]
[404404196,1770110250751,-313.35,7.954e-05,2]
[404404197,1770110263370,500.0,7.954e-05,2]
[404404198,1770110295869,-151.0,8.078e-05,2]
[404404199,1770110295900,-250.0,8.079e-05,2]
[404404200,1770110295929,-300.0,8.079e-05,2]
[404404201,1770110295959,-150.0,8.079e-05,2]
[404404202,1770110295989,-300.0,8.079e-05,2]
[404404203,1770110296302,-300.0,8.079e-05,2]
[404404204,1770110296471,-2098.01,8.08e-05,2]
[404404205,1770110296506,-5000.01,8.08e-05,2]
[404404206,1770110296520,-5000.01,8.08e-05,2]
[404404207,1770110296536,-5000.01,8.08e-05,2]
[404404208,1770110296561,-5000.01,8.08e-05,2]
[404404209,1770110296579,-5000.01,8.08e-05,2]
[404404210,1770110296610,-5000.01,8.08e-05,2]
[404404211,1770110296724,-5000.01,8.08e-05,2]
[404404212,1770110301690,-5000.01,8.08e-05,2]
[404404213,1770110301795,-5000.01,8.08e-05,2]
[404404214,1770110301996,-5000.01,8.08e-05,2]
[404404215,1770110302095,-5000.01,8.08e-05,2]
[404404216,1770110302187,-5000.01,8.08e-05,2]
[404404217,1770110302294,-5000.01,8.08e-05,2]
[404404218,1770110302438,-5000.01,8.08e-05,2]
[404404219,1770110302540,-5000.01,8.08e-05,2]
[404404220,1770110304366,-9500.01,8.08e-05,2]
[404404221,1770110304693,-2708.3631,8.08e-05,2]
[404404222,1770110304727,-4583.2838,8.081e-05,2]
[404404223,1770110304853,-10000.01,8.081e-05,2]
[404404224,1770110305077,-10000.01,8.081e-05,2]
[404404225,1770110305196,-10000.01,8.081e-05,2]
[404404226,1770110308465,-1200.0,8.08e-05,2]
[404404227,1770110308499,-7600.01,8.081e-05,2]
[404404228,1770110308577,-10000.01,8.081e-05,2]
[404404229,1770110308711,-10000.01,8.081e-05,2]
[404404230,1770110311708,-10000.01,8.081e-05,2]
[404404231,1770110314768,-10000.01,8.081e-05,2]
[404404232,1770110314915,-10000.01,8.081e-05,2]
[404404233,1770110315015,-10000.01,8.081e-05,2]
[404404234,1770110315120,-10000.01,8.081e-05,2]
[404404235,1770110315243,-10000.01,8.081e-05,2]
[404404236,1770110315366,-10000.01,8.081e-05,2]
[404404237,1770110315477,-10000.01,8.081e-05,2]
[404404238,1770110333599,-3409.46,7.965e-05,2]
[404404239,1770110439586,3181.09,7.965e-05,2]
[404404240,1770110439610,2317.12,7.965e-05,2]
[404404241,1770110504435,7682.89,7.671e-05,2]
[404404242,1770110504456,10000.01,7.671e-05,2]
[404404243,1770110504487,10000.01,7.671e-05,2]
[404404244,1770110504513,10000.01,7.671e-05,2]
[404404245,1770110504535,10000.01,7.671e-05,2]
[404404246,1770110504557,10000.01,7.671e-05,2]
[404404247,1770110504580,3264.07,7.671e-05,2]
[404404248,1770110531681,6735.94,7.686e-05,2]
[404404249,1770110531704,6828.63,7.686e-05,2]
[404404250,1770110594919,-237.3167,7.98e-05,2]
[404404251,1770110610312,-611.36272693,8.072e-05,2]
[404404252,1770110610350,-218.0,8.072e-05,2]
[404404253,1770110610384,-151.0,8.077e-05,2]
[404404254,1770110610413,-300.0,8.077e-05,2]
[404404255,1770110610441,-1200.0,8.077e-05,2]
[404404256,1770110610470,-150.0,8.078e-05,2]
[404404257,1770110610499,-300.0,8.078e-05,2]
[404404258,1770110610528,-758.51,8.078e-05,2]
[404404259,1770110610557,-184.68754554,8.078e-05,2]
[404404260,1770110610588,-330.61355148,8.078e-05,2]
[404404261,1770110610615,-500.0,8.078e-05,2]
[404404262,1770110610644,-146.51981572,8.078e-05,2]
[404404263,1770110610859,-298.62272066,8.078e-05,2]
[404404264,1770110610891,-500.0,8.078e-05,2]
[404404265,1770110610919,-500.0,8.078e-05,2]
[404404266,1770110610954,-500.0,8.078e-05,2]
[404404267,1770110610983,-505.78336998,8.078e-05,2]
[404404268,1770110611012,-345.3758937,8.078e-05,2]
[404404269,1770110611042,-537.49958958,8.078e-05,2]
[404404270,1770110611076,-500.0,8.078e-05,2]
[404404271,1770110611108,-500.0,8.078e-05,2]